Cogmind - Beta 9.4 *** ADVENTURER MODE // 2020.02.05 @ 11:08:14 Player: lcbb_tuk Result: Destroyed by B-36 Bruiser with Hammer Performance ------------- Evolutions (2) 1000 Regions Visited (4) 800 Robots Destroyed (29) 145 Value Destroyed (762) 762 Prototype IDs (1) 20 Alien Tech Used (0) 0 Bonus (-362) -362 TOTAL SCORE: 2365 Bonus ------- Friendly Fire -362 Cogmind --------- Core Integrity 0/550 Matter 291/300 Energy 85/100 System Corruption 3% Temperature Cool (0) Movement Core (50) Location -8/Storage Parts ------- > --- POWER (4) -------- (None) > --- PROPULSION (2) --- (None) > --- UTILITY (3) ------ (None) > --- WEAPON (2) ------- (None) > --- INVENTORY (4) ---- Carbon-fiber Leg Carbon-fiber Leg Peak State ------------ > --- POWER ------------ Ion Engine Ion Engine Light Ion Engine Light Ion Engine > --- PROPULSION ------- Carbon-fiber Leg Carbon-fiber Leg > --- UTILITY ---------- Drone Bay Drone Bay Drone Bay > --- WEAPON ----------- EM Pulse Gun Light Assault Rifle > --- INVENTORY -------- Carbon-fiber Leg Carbon-fiber Leg Drone Bay Spread Laser [Rating: 28] Favorites ----------- Power Ion Engine Engine Ion Engine Propulsion Light Treads Treads Light Treads Leg Carbon-fiber Leg Utility Improved Sensor Array Device Improved Sensor Array Storage Small Storage Unit Processor Improved Targeting Computer Protection Improved Propulsion Shielding Weapon Spread Laser Energy Gun Spread Laser Ballistic Gun Light Assault Rifle Build | -11 -10 -9 -8 -8 ------- Run | Scr Mat Mat Mat Sto Slots Evolved 4 | . . 2 2 . Power 3 | . . 2 1 . Propulsion . | . . . . . Utility 1 | . . . 1 . Weapon . | . . . . . Parts Attached 43 | 6 2 14 2 19 Power 8 | 1 . 6 1 . Engine 8 | 1 . 6 1 . Core . | . . . . . Reactor . | . . . . . Propulsion 4 | 2 . 2 . . Treads 2 | 2 . . . . Leg 2 | . . 2 . . Wheel . | . . . . . Hover . | . . . . . Flight . | . . . . . Utility 18 | 1 2 2 . 13 Device 14 | . 2 1 . 11 Storage 1 | 1 . . . . Processor 1 | . . 1 . . Hackware . | . . . . . Protection 2 | . . . . 2 Artifact . | . . . . . Weapon 13 | 2 . 4 1 6 Energy Gun 7 | 1 . 2 . 4 Energy Cannon . | . . . . . Ballistic Gun 6 | 1 . 2 1 2 Ballistic Cannon . | . . . . . Launcher . | . . . . . Special Weapon . | . . . . . Impact Weapon . | . . . . . Slashing Weapon . | . . . . . Piercing Weapon . | . . . . . Special Melee Weapon . | . . . . . Unidentified Prototypes 1 | . . . . 1 Parts Lost 22 | . . 2 1 19 Power 5 | . . 1 . 4 Propulsion 2 | . . . . 2 Utility 7 | . . 1 . 6 Weapon 8 | . . . 1 7 Highest Loss Streak 15 | . . 1 1 15 Average Slot Usage (%) 88 | . 99 94 82 71 Engine 25 | . 14 31 29 26 Treads 15 | . 28 20 . . Leg 5 | . . 1 18 15 Device 15 | . 26 13 9 10 Processor 3 | . . 5 9 2 Energy Gun 11 | . 14 11 14 6 Ballistic Gun 10 | . 14 10 2 8 Naked Turns 18 | . . . . 18 Heaviest Build 37 | 13 14 20 21 37 Greatest Support 40 | 40 40 40 30 30 Greatest Overweight (x) 2 | . . 1 . 2 Average Overweight (x) . | . . . . . Largest Inventory Capacity 6 | 6 6 4 4 4 Average Capacity 4 | 4 4 4 4 4 Most Carried 4 | 2 4 4 4 4 Average Carried 3 | 1 3 3 4 3 Final Capacity 6 | 6 4 4 4 4 Final Carried 4 | 2 4 4 4 2 Class Distribution -------------------- 61% | Mutant 38% | Scavenger-Mutant Dominant Class ---------------- Mutant | -10/Materials Mutant | -9/Materials Scavenger-Mutant | -8/Materials Scavenger-Mutant | -8/Storage Resources | -11 -10 -9 -8 -8 ----------- Run | Scr Mat Mat Mat Sto Matter Collected 680 | 160 137 153 16 214 Remotely . | . . . . . Salvage Created 803 | . 77 250 31 445 Parts 70 | . 6 18 7 39 Haulers Intercepted . | . . . . . Recyclers Shooed . | . . . . . Parts Field Recycled . | . . . . . Retrieved Matter . | . . . . . Parts Self-Destructed . | . . . . . Prevented . | . . . . . Kills | -11 -10 -9 -8 -8 ------- Run | Scr Mat Mat Mat Sto Combat Hostiles Destroyed 25 | . 2 9 4 10 Guns 22 | . 1 7 4 10 AOE 3 | . 1 2 . . Classes Destroyed 5 | . 1 2 . 2 Drone 3 | . . . . 3 Watcher 1 | . . . . 1 Swarmer 10 | . . 3 4 3 Grunt 10 | . 2 5 . 3 Sentry 5 | . . 1 . 4 Best Kill Streak 4 | . 2 3 4 4 Combat Bots Only 4 | . 2 3 4 4 Max Kills in Single Turn 2 | . 1 2 1 2 Gunslinging 1 | . . 1 . . Exploded 2 | . 1 2 . . Melee . | . . . . . Uniques/NPCs Destroyed . | . . . . . Combat | -11 -10 -9 -8 -8 -------- Run | Scr Mat Mat Mat Sto Damage Taken 2082 | . 39 423 141 1479 Core 641 | . 16 68 6 551 Absorbed by Shields . | . . . . . Core Remaining (%) 92 | 100 93 83 . . Volleys Fired 97 | . 7 31 7 52 Largest 2 | . 2 2 2 2 Hottest 130 | . 60 130 130 85 Shots Fired 168 | . 14 62 11 81 Gun 168 | . 14 62 11 81 Cannon . | . . . . . Launcher . | . . . . . Special . | . . . . . Kinetic 101 | . 7 44 1 49 Thermal 41 | . . 18 10 13 Explosive . | . . . . . Electromagnetic 26 | . 7 . . 19 Robot Hit Streak 28 | . 9 23 13 28 Robot Miss Streak 4 | . 1 4 4 2 Penetration Max . | . . . . . Secondary Targets 3 | . . 2 . 1 Max Gunslinging Chain 1 | . . 1 . 1 Shots Hit Robots 139 | . 12 54 11 62 Core Hits 99 | 1 4 37 10 47 Critical Hits . | . . . . . Critical Kills . | . . . . . Critical Parts Destroyed . | . . . . . Melee Attacks . | . . . . . Impact . | . . . . . Slashing . | . . . . . Piercing . | . . . . . Sneak Attacks . | . . . . . Combat Hostiles . | . . . . . Follow-up Attacks . | . . . . . Damage Inflicted 1663 | 2 158 584 123 796 Guns 1539 | . 138 505 123 773 Cannons . | . . . . . Explosions 99 | . 20 79 . . Melee . | . . . . . Ramming 25 | 2 . . . 23 Kinetic 711 | . 59 268 7 377 Thermal 550 | . 20 237 116 177 Explosive . | . . . . . Electromagnetic 377 | . 79 79 . 219 Impact . | . . . . . Slashing . | . . . . . Piercing . | . . . . . Highest Corruption . | . . . . . Average Corruption . | . . . . . Corruption Purged . | . . . . . Overload Shots . | . . . . . Overflow Damage . | . . . . . Projectiles . | . . . . . Explosions . | . . . . . Melee . | . . . . . Knockbacks . | . . . . . Impact . | . . . . . Kinetic . | . . . . . Secondary . | . . . . . Self-Inflicted Damage 43 | . . 34 . 9 Shots 1 | . . 1 . . Rammed 8 | 1 . . . 7 Targets Rammed 8 | 1 . . . 7 Kicked . | . . . . . Crushed . | . . . . . Highest Temperature 384 | . 6 384 228 112 Average Temperature 99 | . 6 134 122 30 Received Heat Transfer 672 | . 6 144 9 513 Effects 5 | . . 5 . . Energy Bleed 1 | . . 1 . . Interference 3 | . . 3 . . Short Circuit 1 | . . 1 . . Siege Activations . | . . . . . Robots Corrupted . | . . . . . Combat Hostiles . | . . . . . Parts Fried . | . . . . . Impact Corruptions . | . . . . . Robots Melted . | . . . . . Combat Hostiles . | . . . . . Parts Melted . | . . . . . Heat Transferred 766 | . 50 305 140 271 Parts Sabotaged . | . . . . . Parts Stolen . | . . . . . Parts Stripped . | . . . . . Power Chain Reactions 1 | . 1 . . . Missiles Intercepted . | . . . . . Alert | -11 -10 -9 -8 -8 ------- Run | Scr Mat Mat Mat Sto Peak Influence 201 | . 78 201 113 107 Average Influence 61 | . 28 94 54 56 Maximum Alert Level 1 | . . 1 . . Low Security (%) 96 | 100 100 91 100 100 Level 1 3 | . . 8 . . Level 2 . | . . . . . Level 3 . | . . . . . Level 4 . | . . . . . Level 5 . | . . . . . High Security . | . . . . . Max Security . | . . . . . Squads Dispatched 9 | . 1 1 2 5 Investigation 1 | . 1 . . . Extermination . | . . . . . Reinforcement 5 | . . 1 1 3 Assault . | . . . . . Garrison 3 | . . . 1 2 Intercept . | . . . . . Construction Impeded . | . . . . . Haulers Reinforced . | . . . . . Stealth | -11 -10 -9 -8 -8 --------- Run | Scr Mat Mat Mat Sto Distress Signals 2 | . . 1 . 1 Communications Jammed . | . . . . . Distress Signals . | . . . . . Times Spotted 45 | . 3 12 7 23 Peak Tracking Total 13 | . 2 4 4 13 Tactical Retreats 1 | . . . . 1 Traps | -11 -10 -9 -8 -8 ------- Run | Scr Mat Mat Mat Sto Traps Triggered 1 | . 1 . . . Indirectly . | . . . . . Trap Hack Attempts . | . . . . . Triggered . | . . . . . Disarmed 7 | . 7 . . . Reprogrammed . | . . . . . Reused . | . . . . . Traps Extracted . | . . . . . Installed . | . . . . . Triggered . | . . . . . Machines | -11 -10 -9 -8 -8 ---------- Run | Scr Mat Mat Mat Sto Machines Disabled 2 | . 1 1 . . Max in Single Turn 1 | . 1 1 . . Machines Sabotaged . | . . . . . Garrisons Compromised . | . . . . . Overloaded Fab Kills . | . . . . . Fab Network Shutdowns . | . . . . . Hacking | -11 -10 -9 -8 -8 --------- Run | Scr Mat Mat Mat Sto Machines Accessed 4 | . 2 1 . 1 Terminals 2 | . 1 . . 1 Fabricators . | . . . . . Repair Stations . | . . . . . Recycling Units 2 | . 1 1 . . Scanalyzers . | . . . . . Garrison Access . | . . . . . Total Hacks 15 | . 10 4 . 1 Successful 11 | . 9 1 . 1 Failed 4 | . 1 3 . . Catastrophic . | . . . . . Database Lockouts . | . . . . . Manual . | . . . . . Terminals 5 | . 4 . . 1 Fabricators . | . . . . . Repair Stations . | . . . . . Recycling Units 10 | . 6 4 . . Scanalyzers . | . . . . . Garrison Access . | . . . . . Terminal Hacks 4 | . 3 . . 1 Open Door 1 | . . . . 1 Disarm Traps 3 | . 3 . . . Fabricator Hacks . | . . . . . Repair Station Hacks . | . . . . . Recycling Unit Hacks 7 | . 6 1 . . Process 4 | . 4 . . . Report Inventory 1 | . 1 . . . Retrieve Matter 1 | . 1 . . . Retrieve Components 1 | . . 1 . . Scanalyzer . | . . . . . Garrison Access Hacks . | . . . . . Unauthorized Hacks . | . . . . . Terminals . | . . . . . Fabricators . | . . . . . Repair Stations . | . . . . . Recycling Units . | . . . . . Scanalyzers . | . . . . . Garrison Access . | . . . . . Data Cores Recovered . | . . . . . Used . | . . . . . Hacking Detections 3 | . 2 1 . . Full Trace Events 3 | . 2 1 . . Feedback Events . | . . . . . Feedback Blocked . | . . . . . Robot Schematics Acquired . | . . . . . Robots Built . | . . . . . Matter . | . . . . . Time . | . . . . . Total Robot Build Rating . | . . . . . Part Schematics Acquired . | . . . . . Parts Built . | . . . . . Matter . | . . . . . Time . | . . . . . Total Part Build Rating . | . . . . . Parts Repaired . | . . . . . Time . | . . . . . Parts Recycled . | . . . . . Recycled Matter 7 | . 7 . . . Retrieved Matter . | . . . . . Retrieved Components 9 | . . 9 . . Parts Scanalyzed . | . . . . . Part Schematics Acquired . | . . . . . Parts Damaged . | . . . . . Bothacking | -11 -10 -9 -8 -8 ------------ Run | Scr Mat Mat Mat Sto Used RIF Installer . | . . . . . Robots Hacked . | . . . . . Non-combat . | . . . . . Combat . | . . . . . Robot Hacks Applied . | . . . . . Relay Couplers Released . | . . . . . Robots Rewired . | . . . . . Allies Hacked . | . . . . . Hacks Repelled . | . . . . . Allies | -11 -10 -9 -8 -8 -------- Run | Scr Mat Mat Mat Sto Total Allies . | . . . . . Largest Group . | . . . . . Highest-Rated Group . | . . . . . Highest-Rated Ally . | . . . . . Total Orders . | . . . . . Ally Attacks . | . . . . . Total Damage . | . . . . . Kills . | . . . . . Allies Corrupted . | . . . . . Allies Melted . | . . . . . Intel | -11 -10 -9 -8 -8 ------- Run | Scr Mat Mat Mat Sto Robot Analysis Total . | . . . . . Derelict Logs Recovered . | . . . . . Drone Launches 16 | . . . . 16 Drone Recoveries . | . . . . . Exploration | -11 -10 -9 -8 -8 ------------- Run | Scr Mat Mat Mat Sto Turns Passed 1535 | 105 344 610 77 399 Spaces Moved 790 | 57 180 312 47 194 Core 29 | 3 . . . 26 Treads 525 | 54 180 291 . . Legs 236 | . . 21 47 168 Wheels . | . . . . . Hover . | . . . . . Flight . | . . . . . Fastest Speed 50 | 50 160 120 120 50 Average Speed 144 | 154 160 157 120 113 Slowest Speed 160 | 160 160 160 120 150 Overloaded Moves . | . . . . . Propulsion Burnouts . | . . . . . Robots Hopped . | . . . . . Cave-ins Triggered . | . . . . . Exploration Rate (%) 22 | 4 20 23 8 58 Regions Visited 4 Branch Regions 1 Pre-discovered Areas . | . . . . . Known Exits Taken . | . . . . . Unknown Exits Taken 4 | 1 1 1 1 . Scrap Searched . | . . . . . Spaces Dug . | . . . . . Terrain Destroyed 7 | . 7 . . . Melee . | . . . . . Projectile . | . . . . . AOE 7 | . 7 . . . Actions | -11 -10 -9 -8 -8 --------- Run | Scr Mat Mat Mat Sto Total 1019 | 71 222 375 56 295 Wait 57 | 6 31 7 1 12 Move 787 | 57 179 311 46 194 Hop . | . . . . . Pick Up 9 | 2 2 4 . 1 Fast Attach 31 | 6 2 6 2 15 Attach 6 | . . 3 . 3 Detach . | . . . . . Swap 7 | . . 5 . 2 Drop 18 | . 1 8 . 9 Fire 97 | . 7 31 7 52 Melee . | . . . . . Ram 6 | . . . . 6 Kick 1 | . . . . 1 Crush . | . . . . . Escape Stasis . | . . . . . Rewire . | . . . . . Trap . | . . . . . Miscellaneous . | . . . . . Route ------- -11/Scrapyard -10/Materials -9/Materials -8/Materials -8/Storage History --------- Turn | Location | Event 6 | -11/Scrapyard | Discovered new exit (range 15) 106 | -11/Scrapyard | Entered Materials 317 | -10/Materials | Build established: Mutant 402 | -10/Materials | Discovered new exit (range 16) 450 | -10/Materials | Entered another Materials area 450 | -9/Materials | Evolved 2 slots: Power x2 1006 | -9/Materials | Discovered new exit (range 12) 1060 | -9/Materials | Entered another Materials area 1060 | -8/Materials | Evolved 2 slots: Power x1, Utility x1 1097 | -8/Materials | Garrison activated, responded to threat 1126 | -8/Materials | Discovered new exit (range 9) 1137 | -8/Materials | Entered Storage 1213 | -8/Storage | Build established: Scavenger-Mutant 1419 | -8/Storage | Garrison activated, responded to threat 1493 | -8/Storage | Core integrity fell below 50% 1504 | -8/Storage | Core integrity fell below 20% 1536 | -8/Storage | Destroyed by B-36 Bruiser with Hammer Last Messages --------------- S-10 Pest destroyed. Lgt. Assault Rifle destroyed. K-01 Serf collects debris. Slammed into A-02 Transporter. Slammed into K-01 Serf. Acquired 3 matter. K-01 Serf collects debris. Slammed into K-01 Serf. Acquired Particle Gun. S-10 Pest destroyed. Particle Gun destroyed. Acquired Hrd. Medium Armor Plating. Acquired Transmission Jammer. Slammed into G-47 Trooper. Hrd. Medium Armor Plating destroyed. Slammed into G-47 Trooper. Destabilizing: Short circuit. Broken Transmission Jammer permanently disabled. Broken Transmission Jammer destroyed. System corrupted by crushing effect (+3). Map ----- +----------------------------------------------------+ | ???????????????????????????????????????????????# | | ???????????????????????????#?????????########### | | ???????????????##+##??????""#????????# # | | ?????########### #??###"T"####?????# """" # | | ?????# # #? ????# ""??" # | | ?????# + # T = ???????# ""???" + | | ?????# # # """?????????# "???"" # | | ?????# + " """?????????# "??"" # | | ?????# # # """?????????# """" + | | ?????# # #?????????????????# # | | ?????# # ######????????????########### | | ?????# # ## ????????????????######T# | | ?????########### ## ?????????????????# ! # # | | ??????????????# # "???????#?????????# ! + | | ??????????????# # "?????? #?????????# ! # # | | ??????????????# + "????? #?????????######## | | ??????????????# # """""" #????????????????# | | ??????????????# # #????????????????# | | ??????????????## ## #????????????????# | | ???????????????# #####+######????????????????# | | ???????????????# #???# ########??????????????# | | ???????????????# #???# # l #??????????????# | | ???????????????+ #???# # #??????????????# | | ???????????????# #???# # s! #??????????????# | | ???????????????# #???# # g #?????????????## | | ???????????????# #???# @ g #######???????# | | ???????????????# #???#b# %g%=# ########## | | ???????????????# ????# #####+## | | ???????????????####????# =## | | ???????????????????????# ## | | ???????????????????????# ## ####+######+ | | ???????????????????????#% ####+##### | | ???????????????????????#%##### # # | | ???????????????????????# #???# # """ # """" | | ???????????????????????# #???# # ^""" # """" | | ???????????????????????# #???# # """ # """" | | ???????????????????????#%#???# # # ] | | ???????????????????????# #???# + ^ """ ########## | | ??????????????""???????#%#???# # """ #????????? | | ?????? ??????? ???#####/##### # """ #????????? | | ?????? ?????? ???# *=%!= # + #????????? | | ?????? #######/#??# !!%=%* # ##### ####????????? | | ?????? #?# =%*%%%!=#!############??????? | | ?????? "?# =[=!==*/ %* = #??????? | | ????# "" Y?# %%*[!%*#%= % #??????? | | ????# "G "?# = *%=[ ## ### #### #??????? | | ????# "" [!! #?# ]% % ## #?# #??# #????+## | | ????# !!! #?# % ## #?# #??# ### # | | ????? !! #?#######+####+#?#+#??# # | | ?????? """ #???????# #???? ??????# % # | +----------------------------------------------------+ Best States ------------- Heat Dissipation 51 Energy Generation 25 Energy Capacity 450 Matter Stores 300 Matter Capacity 300 Sight Range 16 Robot Scan Range 26 Terrain Scan Density 10 Jamming Range 8 Armor Coverage 225 Resistance: KI 20 Resistance: TH 20 Resistance: EX 20 Resistance: EM 20 Resistance: I 20 Resistance: S 20 Resistance: P 20 Propulsion Shielding 66 Evasion (%) 40 Targeting Accuracy 6 Recoil Reduction 2 Offensive Hacking 10 Item Schematics ----------------- None Robot Schematics ------------------ None Fabricated ------------ Nothing Alien Tech Used ----------------- None Achievements -------------- None Challenges ------------ None Game ------ Seed TerrabombNeutrinoCompressor Manual? 0 Play Time 00:22:26 Cumulative 15.0 hours Start 2020.02.05 @ 10:45:37 End 2020.02.05 @ 11:08:14 Sessions 1 Manual Loads 0 Difficulty Adventurer Special Mode None Game No. 23 Rogue 0 Adventurer 23 Explorer 0 Win Type - Total 0 Types 0/0/0/0/0/0/0 Lore% 20 Gallery% 20 Achievement% 16 Wizard Run 0 Options --------- ASCII 0 Keyboard 1 Movement Numpad Keybinds 0 Fullscreen 1 Font 12/Fuzzy Map View 83x54 Tactical HUD 0 Map Filters NONE Filters NONE Steam 1 RUN: c424a4e8-1769-4035-9474-af04d1d116fd